{"text_format":"1","workbook":"xlsx","n_sheets":3,"sheets":["申請書 (記載例)","（記入用）証明申請書  正（1枚目） ","証明申請書 　副（2枚目） "],"not_rendered":{"charts":0,"images":0,"macros":1,"external_links":0,"defined_names":3,"comments":0,"pivot_tables":0},"unopened":[],"bounds":{"document_bytes":16777216,"sheet_cells":100000,"rows_first":2000,"rows_last":500,"rows_between":2000,"halvings":0,"cell_chars":16384,"cell_head_chars":4096},"cells_cut":0,"cells_raw":0,"read":"whole","date_system":"1900"}

{"sheet":"申請書 (記載例)","index":0,"n_rows":52,"n_cols":53,"rows_kept":52,"cut":false,"hidden":false,"merged":[[35,39,35,53],[36,48,36,52],[37,48,38,52],[48,36,50,49],[43,2,43,5],[43,10,45,16],[43,36,43,38],[44,6,44,8],[44,21,44,22],[44,25,45,26],[44,27,45,34],[41,25,43,26],[41,27,43,34],[41,48,41,49],[42,6,42,8],[42,21,42,22],[42,23,42,24],[42,19,42,20],[20,50,21,53],[27,44,28,47],[24,0,25,1],[24,50,27,53],[25,6,25,8],[26,0,26,1],[26,13,26,27],[23,21,23,25],[22,10,22,26],[21,10,21,26],[13,42,13,46],[13,50,14,53],[14,2,14,5],[14,6,14,12],[15,50,16,53],[16,43,17,48],[17,8,17,12],[17,14,17,26],[17,28,17,37],[9,40,10,40],[10,6,11,8],[10,42,10,43],[10,50,11,53],[11,16,11,29],[9,34,10,34],[9,35,10,35],[9,36,10,36],[9,37,10,37],[9,27,10,27],[1,48,2,51],[2,3,2,8],[3,3,4,8],[7,0,8,1],[7,6,7,48],[7,49,28,49],[7,50,9,53],[8,6,8,8],[8,9,8,21],[8,22,8,41],[8,42,8,48],[9,9,10,9],[9,10,10,10],[9,11,10,11],[9,12,10,12],[9,13,10,13],[9,14,10,14],[9,15,10,15],[9,22,10,22],[9,23,10,23],[9,38,10,38],[9,39,10,39],[9,28,10,28],[9,29,10,29],[41,20,41,23],[15,6,15,37],[14,0,16,1],[23,11,23,14],[23,16,23,19],[9,24,10,24],[9,25,10,25],[9,26,10,26],[13,6,13,12],[11,0,12,1],[10,0,10,1],[9,30,10,30],[9,31,10,31],[9,32,10,32],[9,33,10,33],[29,37,30,39],[40,25,40,34],[40,39,40,53],[30,2,30,5],[31,0,35,2],[36,0,37,2],[39,39,39,53],[40,20,40,23],[29,50,31,53],[18,11,18,16],[51,10,51,18],[0,0,1,1],[1,3,1,8],[19,0,22,1],[39,0,40,2],[42,10,42,16],[41,0,41,2],[41,10,41,16]]}
["記　載　例",null,null,"【車名】",null,null,null,null,null,null,"【型式・車台番号】",null,null,null,null,null,null,null,null,null,null,null,null,null,null,null,null,null,null,null,null,null,null,null,null,null,null,null,null,null,null,null,null,null,null,null,null,null,"【自動車の大きさ】"]
[null,null,null,"　車の製造会社名（メーカー名）を記入",null,null,null,null,null,null,null,"完成検査終了証、自動車検査証、譲渡証明書、抹消登録証明書等に記載してある内容を、正確に記入してください。",null,null,null,null,null,null,null,null,null,null,null,null,null,null,null,null,null,null,null,null,null,null,null,null,null,null,null,null,null,null,null,null,null,null,null,null,"　センチメートル単位で、右詰めで記入してください。"]
[null,null,null,"してください。",null,null,null,null,null,null,null,null,"（新車の場合は自動車販売店等に照会してください。）"]
[null,null,null,"　例：トヨタ、ニッサン、三菱、ホンダ、マツダ　等",null,null,null,null,null,null,null,"数字とアルファベットを明瞭に区分して記入してください。",null,null,null,null,null,null,null,null,null,null,null,null,null,null,null,null,null,null,null,null,null,null,null,null,null,null,null,null,null,null,null,null,null,null,null,null,"（ミリ単位は切り捨てる。）"]
[null,null,null,null,null,null,null,null,null,null,null,null,"（要注意　　１とI、０とD・O、８とB、VとUなど。）"]
[null,null,null,null,null,null,null,null,null,null,null,"型式・車台番号は、それぞれ左詰めで記入し、アルファベットには下欄に✔を入れてください。",null,null,null,null,null,null,null,null,null,null,null,null,null,null,null,null,null,null,null,null,null,null,null,null,null,null,null,null,null,null,null,null,null,null,null,null,null,null,"【使用の本拠の位置】"]
[null,null,null,null,null,null,"規則別記様式第1号（第４関係）",null,null,null,null,null,null,null,null,null,null,null,null,null,null,null,null,null,null,null,null,null,null,null,null,null,null,null,null,null,null,null,null,null,null,null,null,null,null,null,null,null,null,null,"〔個人の場合〕"]
[null,null,null,null,null,null,"自　　動　　車　　保　　管　　場　　所　　証　　明　　申　　請　　書",null,null,null,null,null,null,null,null,null,null,null,null,null,null,null,null,null,null,null,null,null,null,null,null,null,null,null,null,null,null,null,null,null,null,null,null,null,null,null,null,null,null,"※この申請書は、軽自動車には使用できません。","　実際に居住する場所の住所を記入してください。通常は、住民票の住所と同じです。"]
[null,null,null,null,null,null,"車　　　名",null,null,"型　　　式",null,null,null,null,null,null,null,null,null,null,null,null,"車　　台　　番　　号",null,null,null,null,null,null,null,null,null,null,null,null,null,null,null,null,null,null,null,"自動車の大きさ"]
[null,null,null,null,null,null,null,null,null,"E","ー","A","B",1,2,3,null,null,null,null,null,null,"A","B",1,2,3,"ー",7,6,5,1,2,3,4,5,"E",null,null,null,null,null,"長さ",null,null,4,6,9,"センチメートル"]
["【申請者住所・氏名】",null,null,null,null,null,"ト　ヨ　タ",null,null,null,null,null,null,null,null,null,null,null,null,null,null,null,null,null,null,null,null,null,null,null,null,null,null,null,null,null,null,null,null,null,null,null,"幅",null,null,1,6,9,"センチメートル",null,"　《通常、勤務先は、個人の使用の本拠とはなりません》"]
["　車検証の使用者欄にあたる箇所です。",null,null,null,null,null,null,null,null,null,null,null,null,null,null,null,"(アルファベットには下欄にチェックしてください）",null,null,null,null,null,null,null,null,null,null,null,null,null,null,null,null,null,null,null,null,null,null,null,null,null,"高さ",null,null,1,4,5,"センチメートル"]
[null,null,null,null,null,null,null,null,null,"✔",null,"✔","✔",null,null,null,null,null,null,null,null,null,"✔","✔",null,null,null,null,null,null,null,null,null,null,null,null,"✔",null,null,null,null,null,null,null,null,null,null,null,null,null,"〔法人の場合〕"]
["〔個人の場合〕",null,null,null,null,null,"　自動車の使用の本拠の位置",null,null,null,null,null,null,"静岡市葵区追手町６番1号　",null,null,null,null,null,null,null,null,null,null,null,null,null,null,null,null,null,null,null,null,null,null,null,null,null,null,null,null,null,null,null,null,null,null,null,null,"　実際に営業を行う事業所の所在地を記入してください。　　本社、営業所等の所在地です。"]
["　住民票又は印鑑登録証明書の住所・氏名を書きます。",null,"記入する",null,null,null,"　自動車の保管場所の位置",null,null,null,null,null,null,"静岡市葵区追手町９番６号　",null,null,null,null,null,null,null,null,null,null,null,null,null,null,null,null,null,null,null,null,null,null,null,null,null,null,null,null,null,"　　軽自動車ではない"]
[null,null,null,null,null,null,"自動車の保管場所の位置欄記載の場所は、申請に係る自動車の保管場所として確保されていることを証明願います。",null,null,null,null,null,null,null,null,null,null,null,null,null,null,null,null,null,null,null,null,null,null,null,null,null,null,null,null,null,null,null,null,null,null,null,null,"　　免除対象ではない",null,null,null,null,null,null,"《通常は、役員の自宅や社員寮等は使用の本拠とはなりません。》"]
[null,null,null,null,null,null,null,null,null,null,null,null,null,null,null,null,null,null,null,null,null,null,null,null,null,null,null,null,null,null,null,null,null,null,null,null,null,null,null,null,null,null,null,"受付印"]
["〔法人の場合〕",null,null,null,null,null,null,"○○","警察署長　殿",null,null,null,null,null,"提出先は、保管場所を管轄する警察署です。",null,null,null,null,null,null,null,null,null,null,null,null,null,"令和　○○　年　○○月　○○日"]
[null,null,null,null,null,null,null,null,null,"〒","（","000-0000",null,null,null,null,null,"）"]
["　登記簿又は印鑑登録証明書の所在地・法人名と、代表者の役職・氏名を記載します。",null,null,null,null,null,null,null,"住　所",null,"静岡市葵区追手町６番1号",null,null,null,null,null,null,null,null,null,null,null,null,null,null,null,null,null,null,null,null,null,null,null,null,null,null,null,null,null,null,null,null,null,null,null,null,null,null,null,"【保管場所の位置】"]
[null,null,null,null,null,null,null,null,null,null,null,null,null,null,null,null,null,null,null,null,null,null,null,null,null,null,null,null,null,null,null,null,null,null,null,null,null,null,null,null,null,null,null,null,null,null,null,null,null,null,"　駐車場の所在地を住居表示や地番で記入してください。"]
[null,null,null,null,null,null,null,"申請者","(ﾌﾘｶﾞﾅ）",null,"　　　シズオカ　　　　　　　　タロウ"]
[null,null,null,null,null,null,null,null,"氏　　名",null,"　静　　岡　　　　太　　郎"]
[null,null,null,null,null,null,null,null,"電　　話",null,null,"054",null,null,null,"―","123",null,null,null,"―","4567"]
[]
[null,null,null,null,null,null,"　　　第　　　　　　　　　　号"]
[null,null,null,null,null,null,null,null,null,null,null,null,null,"自  動  車  保  管  場  所  証  明  書"]
[null,null,null,null,null,null,"　　　自動車の保管場所の位置欄記載の場所は、上記申請にかかる自動車保管場所として確保されていることを証明する。",null,null,null,null,null,null,null,null,null,null,null,null,null,null,null,null,null,null,null,null,null,null,null,null,null,null,null,null,null,null,null,null,null,null,null,null,null,"(2,200円）"]
[]
[null,null,null,null,null,null,null,null,null,null,null,null,null,null,null,null,null,null,null,null,null,null,null,null,null,null,null,null,null,null,null,null,null,null,null,null,null,"控",null,null,null,null,null,null,null,null,null,null,null,null,"普通車、免除対象ではない場合にチェックしてください。"]
[null,null,"記入しない",null,null,null,null,null,null,null,null,null,null,"令和　　　　年　　　　　月　　　　　日",null,null,null,null,null,null,null,null,null,null,null,null,null,null,null,null,null,"警 察 署 長"]
["☆「申請者住所」と「使用の本拠の位置」が異なる場合、次の資料を確認させていただきます。"]
[null,null,null,null,null,null,"備考","１　次に揚げる場合は、所在図の添付を省略することができる。ただし、警察署長は、保管場所の付近の目標となる地物及びその位置を"]
[null,null,null,null,null,null,null,"　知るために特に必要があると認めるときは、所在図の提出を求めることができる。",null,null,null,null,null,null,null,null,null,null,null,null,null,null,null,null,null,null,null,null,null,null,null,null,null,null,null,null,null,null,"※注意事項"]
[null,null,null,null,null,null,null,"　(1)　自動車の使用の本拠の位置が、旧自動車（申請者が保有者である自動車であって申請に係るもの以外のものをいう。以下同じ。）に"]
[null,null,null,null,null,null,null,"　　係る使用の本拠の位置と同一であり、かつ、申請に係る場所が旧自動車の保管場所とされているとき。",null,null,null,null,null,null,null,null,null,null,null,null,null,null,null,null,null,null,null,null,null,null,null,null,null,null,null,null,null,null,"●","　申請添付書面は、次の書類をそれぞれ1通添付してください。"]
["・本拠の位置の公共料金の領収書",null,null,null,null,null,null,"　(2)　自動車の使用の本拠の位置が、保管場所の位置と同一であるとき（（１）に該当する場合を除く。）。",null,null,null,null,null,null,null,null,null,null,null,null,null,null,null,null,null,null,null,null,null,null,null,null,null,null,null,null,null,null,null,null,"★","所在図及び配置図",null,null,null,null,null,null,"★保管場所使用権限疎明書面",null,null,null,false]
[null,null,null,null,null,null,null,"２　自動車保管場所証明書有効期間は、証明日からおおむね１か月である。",null,null,null,null,null,null,null,null,null,null,null,null,null,null,null,null,null,null,null,null,null,null,null,null,null,null,null,null,null,null,null,null,null,null,null,null,null,null,null,null,"（自認書、保管場所使用承諾証明書又は駐車場賃貸借契約書の写し等）"]
["・賃貸借契約書",null,null,null,null,null,null,"３　用紙の大きさは、日本産業規格A列４番とする。"]
["・営業所・支店であることを指定する書面等",null,null,null,null,null,null,null,null,null,null,null,null,null,null,null,null,null,null,null,null,null,null,null,null,null,null,null,null,null,null,null,null,null,null,null,null,null,"●","申請内容に不明な点がある場合は、別途、必要な書面の提出を求めることがあります。"]
[null,null,null,null,null,null,null,null,null,null,null,null,null,null,null,null,null,null,null,null,"増　　車",null,null,null,null,"代　替　車（別の車に変える）"]
["～詳しくは申請窓口まで！～",null,null,null,null,null,null,null,null,null,"自動車登録番号",null,null,null,null,null,null,null,"新",null,"現 台 数",null,null,null,null,"車台番号",null,"AE-E１２３４５６７８",null,null,null,null,null,null,null,null,null,null,null,null,null,null,null,null,null,null,null,null,"受領印"]
[null,null,null,null,null,null,"保管場所の所有者",null,null,null,"静岡５３０れ１２３４",null,null,null,null,null,null,null,null,"大・中",null,"普",null,"軽四",null,null,null,null,null,null,null,null,null,null,null,null,null,null,null,"携帯電話"]
[null,null,"記入する",null,null,null,null,null,null,null,"申請する自動車に登録番号があり、その番号をそのまま使用する場合は記入してください。",null,null,null,null,null,null,null,null,null,null,null,null,null,null,null,null,null,null,null,null,null,null,null,null,null,"連絡先",null,null,null,"０９０－１１１１－２２２２"]
[null,null,null,null,null,null,"自己　　 共有　　 その他",null,null,null,null,null,null,null,null,null,null,null,"規",null,null,1,null,null,null,"登録番号",null,"静岡５００れ４３２１",null,null,null,null,null,null,null,null,null,null,null,"駿河一郎"]
[null,null,null,null,null,null,null,null,null,null,null,null,null,null,null,null,null,null,null,null,null,null,null,null,null,null,null,null,null,null,null,null,null,null,null,null,null,null,null,"　","０５４－７７７－８８８８"]
[]
[null,"【保管場所の所有者】",null,null,null,null,null,null,null,null,"～添付書類～",null,null,null,null,null,null,null,null,null,"新規",null,"→","新たに保管場所として申請する場合。",null,null,null,null,null,null,null,null,null,null,null,null,"【連絡先】"]
[null,"申請する保管場所の所有者に○印をつけてください。",null,null,null,null,null,null,null,null,null,null,null,null,null,null,null,null,null,null,"増車",null,"→","保管場所の収容台数が増える場合。",null,null,null,null,null,null,null,null,null,null,null,null,"　申請内容について、日中問い合わせ可能な連絡先として、携帯電話番号、申請者以外（担当者等）の氏名、電話番号等を記入してください。"]
[null,"自己・・・・","申請者自身が所有する場所。",null,null,null,null,null,"→",null,"自認書",null,null,null,null,null,null,null,null,null,null,null,null,"（現有台数を記入する。）"]
[null,"共有・・・・","所有者が複数人いる場所。",null,null,null,null,null,"→",null,"全員からの使用承諾証明書",null,null,null,null,null,null,null,null,null,"代替",null,"→","車を乗り換える場合、旧自動車を記載。"]
[null,"その他・・","他人の所有する場所。",null,null,null,null,null,"→",null,"使用承諾証明書又は契約書の写し等"]

{"sheet":"（記入用）証明申請書  正（1枚目） ","index":1,"n_rows":40,"n_cols":56,"rows_kept":40,"cut":false,"hidden":false,"merged":[[36,43,36,44],[37,0,37,2],[37,13,37,14],[37,15,37,16],[37,17,37,18],[36,19,38,20],[38,0,40,2],[36,33,40,41],[37,4,40,10],[11,0,11,1],[17,3,17,20],[35,14,35,17],[35,19,35,28],[38,13,40,14],[38,15,40,16],[38,17,40,18],[36,21,38,28],[36,4,36,10],[36,14,36,17],[39,19,40,20],[39,21,40,28],[38,30,38,32],[20,7,20,21],[21,0,21,31],[3,24,4,24],[9,37,9,43],[3,31,4,31],[3,32,4,32],[7,38,7,43],[8,38,8,43],[3,33,4,33],[3,34,4,34],[3,35,4,35],[3,42,3,43],[4,42,4,43],[7,0,7,6],[8,0,8,6],[15,3,15,35],[16,3,16,35],[1,0,1,43],[2,0,2,2],[2,3,2,15],[2,16,2,35],[2,36,2,43],[3,5,4,5],[3,0,6,2],[3,6,4,6],[5,42,5,43],[4,36,4,37],[3,13,4,13],[5,10,5,23],[8,7,8,35],[3,20,4,20],[3,28,4,28],[3,29,4,29],[3,30,4,30],[3,22,4,22],[3,23,4,23],[3,7,4,7],[3,8,4,8],[3,9,4,9],[3,18,4,18],[3,19,4,19],[3,21,4,21],[3,25,4,25],[3,26,4,26],[3,27,4,27],[3,14,4,14],[3,10,4,10],[3,11,4,11],[3,12,4,12],[24,14,24,15],[24,11,24,12],[9,0,9,31],[3,3,4,3],[3,4,4,4],[3,15,4,15],[3,16,4,16],[3,17,4,17],[10,0,10,31],[11,2,11,6],[19,0,19,2],[7,7,7,35],[13,3,13,35],[11,30,11,31],[11,22,11,25],[12,5,12,10],[24,8,24,9],[24,6,24,7],[24,30,24,31],[11,27,11,28]]}
["規則別記様式第1号（第１条関係）"]
["自　　動　　車　　保　　管　　場　　所　　証　　明　　申　　請　　書"]
["車　　　名",null,null,"型　　　式",null,null,null,null,null,null,null,null,null,null,null,null,"車　　台　　番　　号",null,null,null,null,null,null,null,null,null,null,null,null,null,null,null,null,null,null,null,"自動車の大きさ"]
[null,null,null,null,null,null,null,null,null,null,null,null,null,null,null,null,null,null,null,null,null,null,null,null,null,null,null,null,null,null,null,null,null,null,null,null,"長さ",null,null,null,null,null,"センチ\nメートル"]
[null,null,null,null,null,null,null,null,null,null,null,null,null,null,null,null,null,null,null,null,null,null,null,null,null,null,null,null,null,null,null,null,null,null,null,null,"幅",null,null,null,null,null,"センチ\nメートル"]
[null,null,null,null,null,null,null,null,null,null,"(アルファベットには下欄にチェックしてください）",null,null,null,null,null,null,null,null,null,null,null,null,null,null,null,null,null,null,null,null,null,null,null,null,null,"高さ",null,null,null,null,null,"センチ\nメートル"]
[]
["自動車の使用の本拠の位置　",null,null,null,null,null,null,null,null,null,null,null,null,null,null,null,null,null,null,null,null,null,null,null,null,null,null,null,null,null,null,null,null,null,null,null,null,null,"軽自動車ではない",null,null,null,null,null,null,null,null,null,null,null,null,null,false,false,false,false]
["自動車の保管場所の位置",null,null,null,null,null,null,null,null,null,null,null,null,null,null,null,null,null,null,null,null,null,null,null,null,null,null,null,null,null,null,null,null,null,null,null,null,null,"免除対象ではない",null,null,null,null,null,null,null,null,null,null,null,null,null,false,false,false,false]
["　自動車の保管場所の位置欄記載の場所は、申請に係る自動車の保管場所として確保されていることを証明願います。",null,null,null,null,null,null,null,null,null,null,null,null,null,null,null,null,null,null,null,null,null,null,null,null,null,null,null,null,null,null,null,null,null,null,null,null,"受 付 印"]
[]
[null,null,"警察署長　殿",null,null,null,null,null,null,null,null,null,null,null,null,null,null,null,null,null,null,null,null,null,null,null,"年",null,null,"月",null,null,"日"]
[null,null,null,"〒","（",null,null,null,null,null,null,"）"]
[null,null,"住所"]
[]
[null,"申請者","(ﾌﾘｶﾞﾅ）"]
[null,null,"氏名"]
[null,null,"電話"]
[]
["　　　第　　　　　　　　　　号"]
[null,null,null,null,null,null,null,"自  動  車  保  管  場  所  証  明  書"]
["　　　自動車の保管場所の位置欄記載の場所は、上記申請に係る自動車の保管場所として確保されていることを証明する。"]
[]
[]
[null,null,null,null,null,null,null,null,null,null,"年",null,null,"月",null,null,"日",null,null,null,null,null,null,null,null,"警 察 署 長",null,null,null,null,"印"]
[]
["備考","１　次に揚げる場合は、所在図の添付を省略することができる。ただし、警察署長は、保管場所の付近の目標となる地物及びその位置を"]
[null,"　知るため特に必要があると認めるときは、所在図の提出を求めることができる。"]
[null,"　(1)　自動車の使用の本拠の位置が、旧自動車（申請者が保有者である自動車であって申請に係るもの以外のものをいう。以下同じ。）に"]
[null,"　　係る使用の本拠の位置と同一であり、かつ、申請に係る場所が旧自動車の保管場所とされているとき。"]
[null,"　(2)　自動車の使用の本拠の位置が、保管場所の位置と同一であるとき（（１）に該当する場合を除く。）。"]
[null,"２　自動車保管場所証明書有効期間は、証明日からおおむね１か月である。"]
[null,"３　用紙の大きさは、日本産業規格A列４番とする。"]
[]
[]
[null,null,null,null,null,null,null,null,null,null,null,null,null,null,"増　　車",null,null,null,null,"代　替　車（別の車に変える）"]
[null,null,null,null,"自動車登録番号",null,null,null,null,null,null,null,"新",null,"現 台 数",null,null,null,null,"車台番号",null,null,null,null,null,null,null,null,null,null,null,null,null,null,null,null,null,null,null,null,null,null,null,null,null,null,null,null,null,null,null,null,true,false,false,false]
["保管場所の所有者",null,null,null,null,null,null,null,null,null,null,null,null,"大・中",null,"普",null,"軽四",null,null,null,null,null,null,null,null,null,null,null,null,null,null,null,null,null,null,null,null,null,null,null,null,null,null,null,null,null,null,null,null,null,null,false,false,false,false]
["自己  　　共有　  　その他",null,null,null,null,null,null,null,null,null,null,null,null,null,null,null,null,null,null,null,null,null,null,null,null,null,null,null,null,null,"連絡先",null,null,null,null,null,null,null,null,null,null,null,null,null,null,null,null,null,null,null,null,null,false,false,false,false]
[null,null,null,null,null,null,null,null,null,null,null,null,"規",null,null,null,null,null,null,"登録番号"]

{"sheet":"証明申請書 　副（2枚目） ","index":2,"n_rows":40,"n_cols":47,"rows_kept":40,"cut":false,"hidden":false,"merged":[[9,37,9,43],[36,42,36,44],[23,31,24,32],[20,7,20,21],[21,0,21,31],[22,38,28,42],[1,44,31,44],[3,31,4,31],[2,36,2,43],[3,23,4,23],[3,24,4,24],[5,42,5,43],[4,42,4,43],[1,0,1,43],[2,0,2,2],[2,3,2,15],[2,16,2,35],[7,38,7,43],[8,38,8,43],[3,13,4,13],[3,33,4,33],[3,22,4,22],[3,25,4,25],[3,26,4,26],[3,28,4,28],[5,10,5,23],[7,0,7,6],[3,18,4,18],[3,19,4,19],[8,0,8,6],[38,13,40,14],[38,15,40,16],[38,17,40,18],[36,21,38,28],[37,0,37,2],[37,13,37,14],[37,15,37,16],[37,17,37,18],[36,19,38,20],[37,4,40,10],[38,0,40,2],[36,4,36,10],[36,14,36,17],[39,19,40,20],[3,42,3,43],[3,8,4,8],[3,9,4,9],[3,14,4,14],[3,15,4,15],[3,16,4,16],[3,17,4,17],[3,11,4,11],[3,12,4,12],[3,10,4,10],[3,34,4,34],[3,35,4,35],[3,27,4,27],[3,21,4,21],[3,32,4,32],[4,36,4,37],[36,33,40,41],[10,0,10,31],[11,2,11,6],[13,3,13,35],[18,37,19,43],[11,27,11,28],[11,30,11,31],[24,6,24,7],[24,14,24,15],[24,8,24,9],[38,30,38,32],[11,22,11,25],[15,3,15,35],[39,21,40,28],[35,14,35,17],[35,19,35,28],[24,11,24,12],[9,0,9,31],[3,0,6,2],[7,7,7,35],[8,7,8,35],[3,20,4,20],[3,7,4,7],[3,3,4,3],[3,4,4,4],[3,29,4,29],[3,30,4,30],[16,3,16,35],[19,0,19,2],[12,5,12,10],[3,5,4,5],[3,6,4,6],[17,3,17,20],[11,0,11,1]]}
["規則別記様式第1号（第１条関係）"]
["自　　動　　車　　保　　管　　場　　所　　証　　明　　申　　請　　書",null,null,null,null,null,null,null,null,null,null,null,null,null,null,null,null,null,null,null,null,null,null,null,null,null,null,null,null,null,null,null,null,null,null,null,null,null,null,null,null,null,null,null,"※この申請書は、軽自動車には使用できません。"]
["車　　　名",null,null,"型　　　式",null,null,null,null,null,null,null,null,null,null,null,null,"車　　台　　番　　号",null,null,null,null,null,null,null,null,null,null,null,null,null,null,null,null,null,null,null,"自動車の大きさ"]
[{"$f":"IF(OR('（記入用）証明申請書  正（1枚目） '!A4:C7=\"\"),\"\",'（記入用）証明申請書  正（1枚目） '!A4:C7)","v":""},null,null,{"$f":"IF(OR('（記入用）証明申請書  正（1枚目） '!D4:D5=\"\"),\"\",'（記入用）証明申請書  正（1枚目） '!D4:D5)","v":""},{"$f":"IF(OR('（記入用）証明申請書  正（1枚目） '!E4:E5=\"\"),\"\",'（記入用）証明申請書  正（1枚目） '!E4:E5)","v":""},{"$f":"IF(OR('（記入用）証明申請書  正（1枚目） '!F4:F5=\"\"),\"\",'（記入用）証明申請書  正（1枚目） '!F4:F5)","v":""},{"$f":"IF(OR('（記入用）証明申請書  正（1枚目） '!G4:G5=\"\"),\"\",'（記入用）証明申請書  正（1枚目） '!G4:G5)","v":""},{"$f":"IF(OR('（記入用）証明申請書  正（1枚目） '!H4:H5=\"\"),\"\",'（記入用）証明申請書  正（1枚目） '!H4:H5)","v":""},{"$f":"IF(OR('（記入用）証明申請書  正（1枚目） '!I4:I5=\"\"),\"\",'（記入用）証明申請書  正（1枚目） '!I4:I5)","v":""},{"$f":"IF(OR('（記入用）証明申請書  正（1枚目） '!J4:J5=\"\"),\"\",'（記入用）証明申請書  正（1枚目） '!J4:J5)","v":""},{"$f":"IF(OR('（記入用）証明申請書  正（1枚目） '!K4:K5=\"\"),\"\",'（記入用）証明申請書  正（1枚目） '!K4:K5)","v":""},{"$f":"IF(OR('（記入用）証明申請書  正（1枚目） '!L4:L5=\"\"),\"\",'（記入用）証明申請書  正（1枚目） '!L4:L5)","v":""},{"$f":"IF(OR('（記入用）証明申請書  正（1枚目） '!M4:M5=\"\"),\"\",'（記入用）証明申請書  正（1枚目） '!M4:M5)","v":""},{"$f":"IF(OR('（記入用）証明申請書  正（1枚目） '!N4:N5=\"\"),\"\",'（記入用）証明申請書  正（1枚目） '!N4:N5)","v":""},{"$f":"IF(OR('（記入用）証明申請書  正（1枚目） '!O4:O5=\"\"),\"\",'（記入用）証明申請書  正（1枚目） '!O4:O5)","v":""},{"$f":"IF(OR('（記入用）証明申請書  正（1枚目） '!P4:P5=\"\"),\"\",'（記入用）証明申請書  正（1枚目） '!P4:P5)","v":""},{"$f":"IF(OR('（記入用）証明申請書  正（1枚目） '!Q4:Q5=\"\"),\"\",'（記入用）証明申請書  正（1枚目） '!Q4:Q5)","v":""},{"$f":"IF(OR('（記入用）証明申請書  正（1枚目） '!R4:R5=\"\"),\"\",'（記入用）証明申請書  正（1枚目） '!R4:R5)","v":""},{"$f":"IF(OR('（記入用）証明申請書  正（1枚目） '!S4:S5=\"\"),\"\",'（記入用）証明申請書  正（1枚目） '!S4:S5)","v":""},{"$f":"IF(OR('（記入用）証明申請書  正（1枚目） '!T4:T5=\"\"),\"\",'（記入用）証明申請書  正（1枚目） '!T4:T5)","v":""},{"$f":"IF(OR('（記入用）証明申請書  正（1枚目） '!U4:U5=\"\"),\"\",'（記入用）証明申請書  正（1枚目） '!U4:U5)","v":""},{"$f":"IF(OR('（記入用）証明申請書  正（1枚目） '!V4:V5=\"\"),\"\",'（記入用）証明申請書  正（1枚目） '!V4:V5)","v":""},{"$f":"IF(OR('（記入用）証明申請書  正（1枚目） '!W4:W5=\"\"),\"\",'（記入用）証明申請書  正（1枚目） '!W4:W5)","v":""},{"$f":"IF(OR('（記入用）証明申請書  正（1枚目） '!X4:X5=\"\"),\"\",'（記入用）証明申請書  正（1枚目） '!X4:X5)","v":""},{"$f":"IF(OR('（記入用）証明申請書  正（1枚目） '!Y4:Y5=\"\"),\"\",'（記入用）証明申請書  正（1枚目） '!Y4:Y5)","v":""},{"$f":"IF(OR('（記入用）証明申請書  正（1枚目） '!Z4:Z5=\"\"),\"\",'（記入用）証明申請書  正（1枚目） '!Z4:Z5)","v":""},{"$f":"IF(OR('（記入用）証明申請書  正（1枚目） '!AA4:AA5=\"\"),\"\",'（記入用）証明申請書  正（1枚目） '!AA4:AA5)","v":""},{"$f":"IF(OR('（記入用）証明申請書  正（1枚目） '!AB4:AB5=\"\"),\"\",'（記入用）証明申請書  正（1枚目） '!AB4:AB5)","v":""},{"$f":"IF(OR('（記入用）証明申請書  正（1枚目） '!AC4:AC5=\"\"),\"\",'（記入用）証明申請書  正（1枚目） '!AC4:AC5)","v":""},{"$f":"IF(OR('（記入用）証明申請書  正（1枚目） '!AD4:AD5=\"\"),\"\",'（記入用）証明申請書  正（1枚目） '!AD4:AD5)","v":""},{"$f":"IF(OR('（記入用）証明申請書  正（1枚目） '!AE4:AE5=\"\"),\"\",'（記入用）証明申請書  正（1枚目） '!AE4:AE5)","v":""},{"$f":"IF(OR('（記入用）証明申請書  正（1枚目） '!AF4:AF5=\"\"),\"\",'（記入用）証明申請書  正（1枚目） '!AF4:AF5)","v":""},{"$f":"IF(OR('（記入用）証明申請書  正（1枚目） '!AG4:AG5=\"\"),\"\",'（記入用）証明申請書  正（1枚目） '!AG4:AG5)","v":""},{"$f":"IF(OR('（記入用）証明申請書  正（1枚目） '!AH4:AH5=\"\"),\"\",'（記入用）証明申請書  正（1枚目） '!AH4:AH5)","v":""},{"$f":"IF(OR('（記入用）証明申請書  正（1枚目） '!AI4:AI5=\"\"),\"\",'（記入用）証明申請書  正（1枚目） '!AI4:AI5)","v":""},{"$f":"IF(OR('（記入用）証明申請書  正（1枚目） '!AJ4:AJ5=\"\"),\"\",'（記入用）証明申請書  正（1枚目） '!AJ4:AJ5)","v":""},"長さ",null,{"$f":"IF(OR('（記入用）証明申請書  正（1枚目） '!AM4=\"\"),\"\",'（記入用）証明申請書  正（1枚目） '!AM4)","v":""},{"$f":"IF(OR('（記入用）証明申請書  正（1枚目） '!AN4=\"\"),\"\",'（記入用）証明申請書  正（1枚目） '!AN4)","v":""},{"$f":"IF(OR('（記入用）証明申請書  正（1枚目） '!AO4=\"\"),\"\",'（記入用）証明申請書  正（1枚目） '!AO4)","v":""},{"$f":"IF(OR('（記入用）証明申請書  正（1枚目） '!AP4=\"\"),\"\",'（記入用）証明申請書  正（1枚目） '!AP4)","v":""},"センチ\nメートル"]
[null,null,null,null,null,null,null,null,null,null,null,null,null,null,null,null,null,null,null,null,null,null,null,null,null,null,null,null,null,null,null,null,null,null,null,null,"幅",null,null,{"$f":"IF(OR('（記入用）証明申請書  正（1枚目） '!AN5=\"\"),\"\",'（記入用）証明申請書  正（1枚目） '!AN5)","v":""},{"$f":"IF(OR('（記入用）証明申請書  正（1枚目） '!AO5=\"\"),\"\",'（記入用）証明申請書  正（1枚目） '!AO5)","v":""},{"$f":"IF(OR('（記入用）証明申請書  正（1枚目） '!AP5=\"\"),\"\",'（記入用）証明申請書  正（1枚目） '!AP5)","v":""},"センチ\nメートル"]
[null,null,null,null,null,null,null,null,null,null,"(アルファベットには下欄にチェックしてください）",null,null,null,null,null,null,null,null,null,null,null,null,null,null,null,null,null,null,null,null,null,null,null,null,null,"高さ",null,null,{"$f":"IF(OR('（記入用）証明申請書  正（1枚目） '!AN6=\"\"),\"\",'（記入用）証明申請書  正（1枚目） '!AN6)","v":""},{"$f":"IF(OR('（記入用）証明申請書  正（1枚目） '!AO6=\"\"),\"\",'（記入用）証明申請書  正（1枚目） '!AO6)","v":""},{"$f":"IF(OR('（記入用）証明申請書  正（1枚目） '!AP6=\"\"),\"\",'（記入用）証明申請書  正（1枚目） '!AP6)","v":""},"センチ\nメートル"]
[null,null,null,{"$f":"IF(OR('（記入用）証明申請書  正（1枚目） '!D7=\"\"),\"\",'（記入用）証明申請書  正（1枚目） '!D7)","v":""},{"$f":"IF(OR('（記入用）証明申請書  正（1枚目） '!E7=\"\"),\"\",'（記入用）証明申請書  正（1枚目） '!E7)","v":""},{"$f":"IF(OR('（記入用）証明申請書  正（1枚目） '!F7=\"\"),\"\",'（記入用）証明申請書  正（1枚目） '!F7)","v":""},{"$f":"IF(OR('（記入用）証明申請書  正（1枚目） '!G7=\"\"),\"\",'（記入用）証明申請書  正（1枚目） '!G7)","v":""},{"$f":"IF(OR('（記入用）証明申請書  正（1枚目） '!H7=\"\"),\"\",'（記入用）証明申請書  正（1枚目） '!H7)","v":""},{"$f":"IF(OR('（記入用）証明申請書  正（1枚目） '!I7=\"\"),\"\",'（記入用）証明申請書  正（1枚目） '!I7)","v":""},{"$f":"IF(OR('（記入用）証明申請書  正（1枚目） '!J7=\"\"),\"\",'（記入用）証明申請書  正（1枚目） '!J7)","v":""},{"$f":"IF(OR('（記入用）証明申請書  正（1枚目） '!K7=\"\"),\"\",'（記入用）証明申請書  正（1枚目） '!K7)","v":""},{"$f":"IF(OR('（記入用）証明申請書  正（1枚目） '!L7=\"\"),\"\",'（記入用）証明申請書  正（1枚目） '!L7)","v":""},{"$f":"IF(OR('（記入用）証明申請書  正（1枚目） '!M7=\"\"),\"\",'（記入用）証明申請書  正（1枚目） '!M7)","v":""},{"$f":"IF(OR('（記入用）証明申請書  正（1枚目） '!N7=\"\"),\"\",'（記入用）証明申請書  正（1枚目） '!N7)","v":""},{"$f":"IF(OR('（記入用）証明申請書  正（1枚目） '!O7=\"\"),\"\",'（記入用）証明申請書  正（1枚目） '!O7)","v":""},{"$f":"IF(OR('（記入用）証明申請書  正（1枚目） '!P7=\"\"),\"\",'（記入用）証明申請書  正（1枚目） '!P7)","v":""},{"$f":"IF(OR('（記入用）証明申請書  正（1枚目） '!Q7=\"\"),\"\",'（記入用）証明申請書  正（1枚目） '!Q7)","v":""},{"$f":"IF(OR('（記入用）証明申請書  正（1枚目） '!R7=\"\"),\"\",'（記入用）証明申請書  正（1枚目） '!R7)","v":""},{"$f":"IF(OR('（記入用）証明申請書  正（1枚目） '!S7=\"\"),\"\",'（記入用）証明申請書  正（1枚目） '!S7)","v":""},{"$f":"IF(OR('（記入用）証明申請書  正（1枚目） '!T7=\"\"),\"\",'（記入用）証明申請書  正（1枚目） '!T7)","v":""},{"$f":"IF(OR('（記入用）証明申請書  正（1枚目） '!U7=\"\"),\"\",'（記入用）証明申請書  正（1枚目） '!U7)","v":""},{"$f":"IF(OR('（記入用）証明申請書  正（1枚目） '!V7=\"\"),\"\",'（記入用）証明申請書  正（1枚目） '!V7)","v":""},{"$f":"IF(OR('（記入用）証明申請書  正（1枚目） '!W7=\"\"),\"\",'（記入用）証明申請書  正（1枚目） '!W7)","v":""},{"$f":"IF(OR('（記入用）証明申請書  正（1枚目） '!X7=\"\"),\"\",'（記入用）証明申請書  正（1枚目） '!X7)","v":""},{"$f":"IF(OR('（記入用）証明申請書  正（1枚目） '!Y7=\"\"),\"\",'（記入用）証明申請書  正（1枚目） '!Y7)","v":""},{"$f":"IF(OR('（記入用）証明申請書  正（1枚目） '!Z7=\"\"),\"\",'（記入用）証明申請書  正（1枚目） '!Z7)","v":""},{"$f":"IF(OR('（記入用）証明申請書  正（1枚目） '!AA7=\"\"),\"\",'（記入用）証明申請書  正（1枚目） '!AA7)","v":""},{"$f":"IF(OR('（記入用）証明申請書  正（1枚目） '!AB7=\"\"),\"\",'（記入用）証明申請書  正（1枚目） '!AB7)","v":""},{"$f":"IF(OR('（記入用）証明申請書  正（1枚目） '!AC7=\"\"),\"\",'（記入用）証明申請書  正（1枚目） '!AC7)","v":""},{"$f":"IF(OR('（記入用）証明申請書  正（1枚目） '!AD7=\"\"),\"\",'（記入用）証明申請書  正（1枚目） '!AD7)","v":""},{"$f":"IF(OR('（記入用）証明申請書  正（1枚目） '!AE7=\"\"),\"\",'（記入用）証明申請書  正（1枚目） '!AE7)","v":""},{"$f":"IF(OR('（記入用）証明申請書  正（1枚目） '!AF7=\"\"),\"\",'（記入用）証明申請書  正（1枚目） '!AF7)","v":""},{"$f":"IF(OR('（記入用）証明申請書  正（1枚目） '!AG7=\"\"),\"\",'（記入用）証明申請書  正（1枚目） '!AG7)","v":""},{"$f":"IF(OR('（記入用）証明申請書  正（1枚目） '!AH7=\"\"),\"\",'（記入用）証明申請書  正（1枚目） '!AH7)","v":""},{"$f":"IF(OR('（記入用）証明申請書  正（1枚目） '!AI7=\"\"),\"\",'（記入用）証明申請書  正（1枚目） '!AI7)","v":""},{"$f":"IF(OR('（記入用）証明申請書  正（1枚目） '!AJ7=\"\"),\"\",'（記入用）証明申請書  正（1枚目） '!AJ7)","v":""}]
["自動車の使用の本拠の位置　",null,null,null,null,null,null,{"$f":"IF(OR('（記入用）証明申請書  正（1枚目） '!H8:AJ8=\"\"),\"\",'（記入用）証明申請書  正（1枚目） '!H8:AJ8)","v":""},null,null,null,null,null,null,null,null,null,null,null,null,null,null,null,null,null,null,null,null,null,null,null,null,null,null,null,null,null,null,"軽自動車ではない",null,null,null,null,null,null,null,false]
["自動車の保管場所の位置",null,null,null,null,null,null,{"$f":"IF(OR('（記入用）証明申請書  正（1枚目） '!H9:AJ9=\"\"),\"\",'（記入用）証明申請書  正（1枚目） '!H9:AJ9)","v":""},null,null,null,null,null,null,null,null,null,null,null,null,null,null,null,null,null,null,null,null,null,null,null,null,null,null,null,null,null,null,"免除対象ではない"]
["　自動車の保管場所の位置欄記載の場所は、申請に係る自動車の保管場所として確保されていることを証明願います。",null,null,null,null,null,null,null,null,null,null,null,null,null,null,null,null,null,null,null,null,null,null,null,null,null,null,null,null,null,null,null,null,null,null,null,null,"受 付 印"]
[]
[{"$f":"IF(OR('（記入用）証明申請書  正（1枚目） '!A12:B12=\"\"),\"\",'（記入用）証明申請書  正（1枚目） '!A12:B12)","v":""},null,"警察署長　殿",null,null,null,null,null,null,null,null,null,null,null,null,null,null,null,null,null,null,null,{"$f":"IF(OR('（記入用）証明申請書  正（1枚目） '!W12:Z12=\"\"),\"\",'（記入用）証明申請書  正（1枚目） '!W12:Z12)","v":""},null,null,null,"年",{"$f":"IF(OR('（記入用）証明申請書  正（1枚目） '!AB12:AC12=\"\"),\"\",'（記入用）証明申請書  正（1枚目） '!AB12:AC12)","v":""},null,"月",{"$f":"IF(OR('（記入用）証明申請書  正（1枚目） '!AE12:AF12=\"\"),\"\",'（記入用）証明申請書  正（1枚目） '!AE12:AF12)","v":""},null,"日"]
[null,null,null,"〒","（",null,null,null,null,null,null,"）"]
[null,null,"住所",{"$f":"IF(OR('（記入用）証明申請書  正（1枚目） '!D14:AJ14=\"\"),\"\",'（記入用）証明申請書  正（1枚目） '!D14:AJ14)","v":""}]
[]
[null,"申請者","(ﾌﾘｶﾞﾅ）",{"$f":"IF(OR('（記入用）証明申請書  正（1枚目） '!D16:AJ16=\"\"),\"\",'（記入用）証明申請書  正（1枚目） '!D16:AJ16)","v":""}]
[null,null,"氏名",{"$f":"IF(OR('（記入用）証明申請書  正（1枚目） '!D17:AJ17=\"\"),\"\",'（記入用）証明申請書  正（1枚目） '!D17:AJ17)","v":""}]
[null,null,"電話",{"$f":"IF(OR('（記入用）証明申請書  正（1枚目） '!D18:U18=\"\"),\"\",'（記入用）証明申請書  正（1枚目） '!D18:U18)","v":""}]
[null,null,null,null,null,null,null,null,null,null,null,null,null,null,null,null,null,null,null,null,null,null,null,null,null,null,null,null,null,null,null,null,null,null,null,null,null,"収入証紙貼付\n（2,200円）"]
["　　　第　　　　　　　　　　号"]
[null,null,null,null,null,null,null,"自  動  車  保  管  場  所  証  明  書"]
["　　　自動車の保管場所の位置欄記載の場所は、上記申請に係る自動車の保管場所として確保されていることを証明する。"]
[null,null,null,null,null,null,null,null,null,null,null,null,null,null,null,null,null,null,null,null,null,null,null,null,null,null,null,null,null,null,null,null,null,null,null,null,null,null,"2,200円分\n収入証紙\n貼付箇所"]
[null,null,null,null,null,null,null,null,null,null,null,null,null,null,null,null,null,null,null,null,null,null,null,null,null,null,null,null,null,null,null,"控"]
[null,null,null,null,null,null,null,null,null,null,"年",null,null,"月",null,null,"日",null,null,null,null,null,null,null,null,"警 察 署 長"]
[]
["備考","１　次に揚げる場合は、所在図の添付を省略することができる。ただし、警察署長は、保管場所の付近の目標となる地物及びその位置を"]
[null,"　知るため特に必要があると認めるときは、所在図の提出を求めることができる。"]
[null,"　(1)　自動車の使用の本拠の位置が、旧自動車（申請者が保有者である自動車であって申請に係るもの以外のものをいう。以下同じ。）に"]
[null,"　　係る使用の本拠の位置と同一であり、かつ、申請に係る場所が旧自動車の保管場所とされているとき。"]
[null,"　(2)　自動車の使用の本拠の位置が、保管場所の位置と同一であるとき（（１）に該当する場合を除く。）。"]
[null,"２　自動車保管場所証明書有効期間は、証明日からおおむね１か月である。"]
[null,"３　用紙の大きさは、日本産業規格A列４番とする。"]
[]
[]
[null,null,null,null,null,null,null,null,null,null,null,null,null,null,"増　　車",null,null,null,null,"代　替　車（別の車に変える）"]
[null,null,null,null,"自動車登録番号",null,null,null,null,null,null,null,"新",null,"現 台 数",null,null,null,null,"車台番号",null,{"$f":"IF(OR('（記入用）証明申請書  正（1枚目） '!V37:AC39=\"\"),\"\",'（記入用）証明申請書  正（1枚目） '!V37:AC39)","v":""},null,null,null,null,null,null,null,null,null,null,null,{"$f":"IF(OR('（記入用）証明申請書  正（1枚目） '!AH37:AP41=\"\"),\"\",'（記入用）証明申請書  正（1枚目） '!AH37:AP41)","v":""},null,null,null,null,null,null,null,null,"受領印"]
["保管場所の所有者",null,null,null,{"$f":"IF(OR('（記入用）証明申請書  正（1枚目） '!E38:K41=\"\"),\"\",'（記入用）証明申請書  正（1枚目） '!E38:K41)","v":""},null,null,null,null,null,null,null,null,"大・中",null,"普",null,"軽四"]
[{"$f":"'（記入用）証明申請書  正（1枚目） '!A39:C41","v":"自己  　　共有　  　その他"},null,null,null,null,null,null,null,null,null,null,null,null,{"$f":"IF(OR('（記入用）証明申請書  正（1枚目） '!N39:O41=\"\"),\"\",'（記入用）証明申請書  正（1枚目） '!N39:O41)","v":""},null,{"$f":"IF(OR('（記入用）証明申請書  正（1枚目） '!P39:Q41=\"\"),\"\",'（記入用）証明申請書  正（1枚目） '!P39:Q41)","v":""},null,{"$f":"IF(OR('（記入用）証明申請書  正（1枚目） '!R39:S41=\"\"),\"\",'（記入用）証明申請書  正（1枚目） '!R39:S41)","v":""},null,null,null,null,null,null,null,null,null,null,null,null,"連絡先"]
[null,null,null,null,null,null,null,null,null,null,null,null,"規",null,null,null,null,null,null,"登録番号",null,{"$f":"IF(OR('（記入用）証明申請書  正（1枚目） '!V40:AC41=\"\"),\"\",'（記入用）証明申請書  正（1枚目） '!V40:AC41)","v":""}]